[Event "Titled Tuesday Blitz October 31 Late 2023"]
[White "Roberson, Peter T"]
[Black "ChessLebaneseSalah"]
[WhiteFideId "412384"]
[WhiteElo "2595"]
[BlackElo "2417"]
[Result "1-0"]
[Round "3"]
[TimeControl "180+1"]
[Date "2023.10.31"]
[WhiteClock "0:00:14"]
[BlackClock "0:00:08"]
[Board "89"]

1. e4 {[%clk 0:03:00]}  c5 {[%clk 0:02:59]} 2. Nf3 {[%clk 0:02:58]}  d6 {[%clk 0:02:59]} 3. c3 {[%clk 0:02:58]}  Nf6 {[%clk 0:02:58]} 4. h3 {[%clk 0:02:58]}  Nc6 {[%clk 0:02:53]} 5. Bd3 {[%clk 0:02:54]}  e5 {[%clk 0:02:49]} 6. Bc2 {[%clk 0:02:54]}  d5 {[%clk 0:02:43]} 7. exd5 {[%clk 0:02:49]}  Qxd5 {[%clk 0:02:35]} 8. O-O {[%clk 0:02:49]}  Be7 {[%clk 0:02:34]} 9. Re1 {[%clk 0:02:49]}  O-O {[%clk 0:02:33]} 10. d4 {[%clk 0:02:48]}  cxd4 {[%clk 0:02:17]} 11. cxd4 {[%clk 0:02:48]}  exd4 {[%clk 0:01:54]} 12. Bb3 {[%clk 0:02:25]}  Qd6 {[%clk 0:01:44]} 13. Nbd2 {[%clk 0:02:23]}  b5 {[%clk 0:01:39]} 14. Ne4 {[%clk 0:02:20]}  Nxe4 {[%clk 0:01:36]} 15. Rxe4 {[%clk 0:02:20]}  Bf5 {[%clk 0:01:25]} 16. Rf4 {[%clk 0:02:04]}  Be6 {[%clk 0:01:11]} 17. Nxd4 {[%clk 0:01:55]}  Bxb3 {[%clk 0:01:05]} 18. axb3 {[%clk 0:01:50]}  Rad8 {[%clk 0:00:53]} 19. Be3 {[%clk 0:01:50]}  Bf6 {[%clk 0:00:42]} 20. Ra6 {[%clk 0:01:16]}  Qd5 {[%clk 0:00:25]} 21. Rxf6 {[%clk 0:01:08]}  Nxd4 {[%clk 0:00:20]} 22. Rf4 {[%clk 0:00:26]}  Nxb3 {[%clk 0:00:19]} 23. Qxd5 {[%clk 0:00:26]}  Rxd5 {[%clk 0:00:19]} 24. Rxa7 {[%clk 0:00:26]}  Nd2 {[%clk 0:00:16]} 25. b4 {[%clk 0:00:17]}  Nc4 {[%clk 0:00:16]} 26. Bc5 {[%clk 0:00:17]}  Nd6 {[%clk 0:00:13]} 27. Rd7 {[%clk 0:00:15]}  Rf5 {[%clk 0:00:08]} 28. Bxd6 {[%clk 0:00:14]} 1-0


[Site "https://www.chess.com"]

[Event "Titled Tuesday Blitz October 31 Late 2023"]
[White "Tifferet, Shaked"]
[Black "Makaraci, Tunahan"]
[WhiteFideId "2811529"]
[BlackFideId "6356559"]
[WhiteElo "2593"]
[BlackElo "2415"]
[Result "0-1"]
[Round "3"]
[TimeControl "180+1"]
[Date "2023.10.31"]
[WhiteClock "0:00:44"]
[BlackClock "0:01:09"]
[Board "90"]

1. e4 {[%clk 0:03:00]}  Nf6 {[%clk 0:02:59]} 2. e5 {[%clk 0:02:58]}  Nd5 {[%clk 0:02:59]} 3. Nf3 {[%clk 0:02:55]}  d6 {[%clk 0:02:59]} 4. d4 {[%clk 0:02:54]}  Nb6 {[%clk 0:02:59]} 5. Bd3 {[%clk 0:02:50]}  g6 {[%clk 0:02:59]} 6. c3 {[%clk 0:02:46]}  Bg7 {[%clk 0:02:59]} 7. Nbd2 {[%clk 0:02:43]}  O-O {[%clk 0:02:59]} 8. exd6 {[%clk 0:02:40]}  cxd6 {[%clk 0:02:59]} 9. O-O {[%clk 0:02:39]}  Nc6 {[%clk 0:02:59]} 10. Re1 {[%clk 0:02:39]}  Bg4 {[%clk 0:02:59]} 11. h3 {[%clk 0:02:39]}  Bxf3 {[%clk 0:02:59]} 12. Nxf3 {[%clk 0:02:39]}  e5 {[%clk 0:02:57]} 13. Bg5 {[%clk 0:02:29]}  Qc7 {[%clk 0:02:55]} 14. dxe5 {[%clk 0:02:21]}  dxe5 {[%clk 0:02:55]} 15. Qb3 {[%clk 0:02:18]}  Na5 {[%clk 0:02:36]} 16. Qb4 {[%clk 0:02:14]}  Nac4 {[%clk 0:02:29]} 17. b3 {[%clk 0:02:04]}  a5 {[%clk 0:02:22]} 18. Qb5 {[%clk 0:02:03]}  Nd6 {[%clk 0:02:18]} 19. Qxb6 {[%clk 0:01:46]}  Qxb6 {[%clk 0:02:17]} 20. Rad1 {[%clk 0:01:47]}  e4 {[%clk 0:02:14]} 21. Bxe4 {[%clk 0:01:46]}  Nxe4 {[%clk 0:02:14]} 22. Rxe4 {[%clk 0:01:47]}  Rfe8 {[%clk 0:02:12]} 23. Be7 {[%clk 0:01:42]}  Qc6 {[%clk 0:02:06]} 24. Re3 {[%clk 0:01:38]}  Bf8 {[%clk 0:01:51]} 25. Bg5 {[%clk 0:01:31]}  Rxe3 {[%clk 0:01:50]} 26. Bxe3 {[%clk 0:01:32]}  Bc5 {[%clk 0:01:49]} 27. Bh6 {[%clk 0:01:31]}  Qb6 {[%clk 0:01:47]} 28. Rd2 {[%clk 0:01:30]}  Rd8 {[%clk 0:01:46]} 29. Re2 {[%clk 0:01:30]}  f6 {[%clk 0:01:29]} 30. Nd2 {[%clk 0:01:22]}  Kf7 {[%clk 0:01:23]} 31. Ne4 {[%clk 0:01:12]}  Re8 {[%clk 0:01:21]} 32. Be3 {[%clk 0:00:52]}  Bxe3 {[%clk 0:01:14]} 33. Rxe3 {[%clk 0:00:51]}  Qxe3 {[%clk 0:01:10]} 34. Nd6+ {[%clk 0:00:48]}  Ke7 {[%clk 0:01:09]} 35. Nxe8 {[%clk 0:00:44]}  Qe1+ {[%clk 0:01:09]} 0-1


[Site "https://www.chess.com"]

[Event "Titled Tuesday Blitz October 31 Late 2023"]
[White "Ahn, Hongjin"]
[Black "Leyva Proenza, Richard"]
[WhiteFideId "13201492"]
[BlackFideId "3500985"]
[WhiteElo "2413"]
[BlackElo "2583"]
[Result "1-0"]
[Round "3"]
[TimeControl "180+1"]
[Date "2023.10.31"]
[WhiteClock "0:00:13"]
[BlackClock "0:00:00"]
[Board "92"]

1. d4 {[%clk 0:03:00]}  Nf6 {[%clk 0:02:59]} 2. c4 {[%clk 0:03:01]}  g6 {[%clk 0:02:58]} 3. Nc3 {[%clk 0:03:01]}  Bg7 {[%clk 0:02:54]} 4. e4 {[%clk 0:02:58]}  d6 {[%clk 0:02:50]} 5. Be2 {[%clk 0:02:56]}  O-O {[%clk 0:02:49]} 6. Be3 {[%clk 0:02:57]}  c5 {[%clk 0:02:49]} 7. dxc5 {[%clk 0:02:43]}  Qa5 {[%clk 0:02:48]} 8. Qd2 {[%clk 0:02:38]}  dxc5 {[%clk 0:02:47]} 9. Nf3 {[%clk 0:02:31]}  Nc6 {[%clk 0:02:46]} 10. O-O {[%clk 0:02:30]}  Bg4 {[%clk 0:02:38]} 11. Qc1 {[%clk 0:02:15]}  Bxf3 {[%clk 0:02:34]} 12. Bxf3 {[%clk 0:02:16]}  e6 {[%clk 0:02:26]} 13. Bd1 {[%clk 0:01:50]}  Rfd8 {[%clk 0:02:21]} 14. f4 {[%clk 0:01:44]}  Nd4 {[%clk 0:02:08]} 15. e5 {[%clk 0:01:41]}  Nd7 {[%clk 0:02:08]} 16. Ne4 {[%clk 0:01:34]}  f6 {[%clk 0:02:09]} 17. b4 {[%clk 0:01:15]}  Qxb4 {[%clk 0:02:02]} 18. Rb1 {[%clk 0:01:15]}  Qa5 {[%clk 0:01:56]} 19. Rxb7 {[%clk 0:01:14]}  fxe5 {[%clk 0:01:55]} 20. fxe5 {[%clk 0:01:02]}  Bxe5 {[%clk 0:00:46]} 21. Bg5 {[%clk 0:00:52]}  Rf8 {[%clk 0:00:46]} 22. Rxd7 {[%clk 0:00:47]}  Rxf1+ {[%clk 0:00:46]} 23. Kxf1 {[%clk 0:00:47]}  Rf8+ {[%clk 0:00:46]} 24. Bf3 {[%clk 0:00:44]}  Qxa2 {[%clk 0:00:31]} 25. Bh6 {[%clk 0:00:22]}  Qe2+ {[%clk 0:00:16]} 26. Kg1 {[%clk 0:00:20]}  Nxf3+ {[%clk 0:00:14]} 27. gxf3 {[%clk 0:00:19]}  Qxf3 {[%clk 0:00:07]} 28. Bxf8 {[%clk 0:00:19]}  Qxe4 {[%clk 0:00:00]} 29. Bxc5 {[%clk 0:00:13]} 1-0


[Site "https://www.chess.com"]

[Event "Titled Tuesday Blitz October 31 Late 2023"]
[White "Skatchkov, Valery"]
[Black "Lopez Idarraga, Daniel Eduardo"]
[WhiteFideId "24195812"]
[BlackFideId "4405501"]
[WhiteElo "2582"]
[BlackElo "2412"]
[Result "1-0"]
[Round "3"]
[TimeControl "180+1"]
[Date "2023.10.31"]
[WhiteClock "0:02:41"]
[BlackClock "0:02:09"]
[Board "93"]

1. d4 {[%clk 0:03:00]}  d5 {[%clk 0:02:58]} 2. c4 {[%clk 0:03:00]}  c6 {[%clk 0:02:58]} 3. Nf3 {[%clk 0:02:59]}  Nf6 {[%clk 0:02:58]} 4. Nc3 {[%clk 0:03:00]}  a6 {[%clk 0:02:57]} 5. Qc2 {[%clk 0:02:59]}  dxc4 {[%clk 0:02:56]} 6. e4 {[%clk 0:02:59]}  b5 {[%clk 0:02:56]} 7. b3 {[%clk 0:03:00]}  cxb3 {[%clk 0:02:56]} 8. axb3 {[%clk 0:03:00]}  Bb7 {[%clk 0:02:55]} 9. Bb2 {[%clk 0:02:58]}  e6 {[%clk 0:02:49]} 10. Bd3 {[%clk 0:02:58]}  c5 {[%clk 0:02:47]} 11. d5 {[%clk 0:02:43]}  exd5 {[%clk 0:02:46]} 12. exd5 {[%clk 0:02:44]}  Nxd5 {[%clk 0:02:45]} 13. O-O {[%clk 0:02:44]}  Nb4 {[%clk 0:02:44]} 14. Qe2+ {[%clk 0:02:41]}  Qe7 {[%clk 0:02:39]} 15. Be4 {[%clk 0:02:42]}  Bxe4 {[%clk 0:02:31]} 16. Nxe4 {[%clk 0:02:43]}  Qe6 {[%clk 0:02:09]} 17. Nfg5 {[%clk 0:02:41]} 1-0


[Site "https://www.chess.com"]

[Event "Titled Tuesday Blitz October 31 Late 2023"]
[White "Kochiev, Ivan"]
[Black "Rodrigues, Bruno Morado"]
[WhiteFideId "2917890"]
[BlackFideId "2115654"]
[WhiteElo "2577"]
[BlackElo "2411"]
[Result "1-0"]
[Round "3"]
[TimeControl "180+1"]
[Date "2023.10.31"]
[WhiteClock "0:00:04"]
[BlackClock "0:00:03"]
[Board "95"]

1. e4 {[%clk 0:03:00]}  c5 {[%clk 0:02:59]} 2. Nf3 {[%clk 0:02:55]}  Nc6 {[%clk 0:02:58]} 3. d4 {[%clk 0:02:55]}  cxd4 {[%clk 0:02:59]} 4. Nxd4 {[%clk 0:02:56]}  e5 {[%clk 0:02:59]} 5. Nb5 {[%clk 0:02:55]}  d6 {[%clk 0:03:00]} 6. c4 {[%clk 0:02:54]}  Be7 {[%clk 0:02:59]} 7. N1c3 {[%clk 0:02:54]}  a6 {[%clk 0:03:00]} 8. Na3 {[%clk 0:02:54]}  Be6 {[%clk 0:03:01]} 9. Be2 {[%clk 0:02:55]}  Bg5 {[%clk 0:03:01]} 10. O-O {[%clk 0:02:54]}  Bxc1 {[%clk 0:03:01]} 11. Rxc1 {[%clk 0:02:54]}  Nf6 {[%clk 0:03:02]} 12. Qd3 {[%clk 0:02:53]}  O-O {[%clk 0:03:03]} 13. Nc2 {[%clk 0:02:53]}  Qb6 {[%clk 0:02:59]} 14. b3 {[%clk 0:02:47]}  Rfd8 {[%clk 0:02:58]} 15. Rfd1 {[%clk 0:02:46]}  Rac8 {[%clk 0:02:54]} 16. Na4 {[%clk 0:02:26]}  Qa5 {[%clk 0:02:48]} 17. f3 {[%clk 0:02:20]}  Nh5 {[%clk 0:02:20]} 18. g3 {[%clk 0:02:16]}  g6 {[%clk 0:02:07]} 19. a3 {[%clk 0:02:15]}  b5 {[%clk 0:01:56]} 20. cxb5 {[%clk 0:02:11]}  axb5 {[%clk 0:01:57]} 21. Qxb5 {[%clk 0:01:15]}  Qxb5 {[%clk 0:01:58]} 22. Bxb5 {[%clk 0:01:16]}  Bxb3 {[%clk 0:01:55]} 23. Nb6 {[%clk 0:01:17]}  Rb8 {[%clk 0:01:33]} 24. Bxc6 {[%clk 0:01:16]}  Rxb6 {[%clk 0:01:33]} 25. Bd5 {[%clk 0:01:14]}  Bxd5 {[%clk 0:01:20]} 26. exd5 {[%clk 0:01:08]}  Rc8 {[%clk 0:01:18]} 27. Nb4 {[%clk 0:01:07]}  Ra8 {[%clk 0:01:16]} 28. Rc6 {[%clk 0:01:04]}  Rb7 {[%clk 0:01:13]} 29. Rd3 {[%clk 0:00:54]}  Rd7 {[%clk 0:01:02]} 30. Rdc3 {[%clk 0:00:55]}  Ra5 {[%clk 0:00:50]} 31. Ra6 {[%clk 0:00:42]}  Ra7 {[%clk 0:00:44]} 32. Rxd6 {[%clk 0:00:18]}  Rxa3 {[%clk 0:00:43]} 33. Rxa3 {[%clk 0:00:19]}  Rxa3 {[%clk 0:00:44]} 34. Nc6 {[%clk 0:00:16]}  Rxf3 {[%clk 0:00:31]} 35. Nxe5 {[%clk 0:00:16]}  Re3 {[%clk 0:00:30]} 36. Nc4 {[%clk 0:00:09]}  Rd3 {[%clk 0:00:29]} 37. Rd8+ {[%clk 0:00:09]}  Kg7 {[%clk 0:00:29]} 38. d6 {[%clk 0:00:10]}  Kf6 {[%clk 0:00:26]} 39. Rc8 {[%clk 0:00:07]}  Ng7 {[%clk 0:00:24]} 40. Rc7 {[%clk 0:00:05]}  Ne6 {[%clk 0:00:22]} 41. Rc6 {[%clk 0:00:02]}  Rd4 {[%clk 0:00:16]} 42. Kf2 {[%clk 0:00:02]}  h5 {[%clk 0:00:16]} 43. Ke3 {[%clk 0:00:02]}  Rd5 {[%clk 0:00:14]} 44. Nd2 {[%clk 0:00:02]}  Nd8 {[%clk 0:00:10]} 45. Ne4+ {[%clk 0:00:02]}  Ke6 {[%clk 0:00:10]} 46. Ra6 {[%clk 0:00:03]}  Nb7 {[%clk 0:00:08]} 47. d7+ {[%clk 0:00:04]}  Kxd7 {[%clk 0:00:03]} 48. Nf6+ {[%clk 0:00:04]} 1-0


[Site "https://www.chess.com"]

[Event "Titled Tuesday Blitz October 31 Late 2023"]
[White "Kashefi, Amir Hosein"]
[Black "Rodriguez, Santiago"]
[WhiteFideId "12557935"]
[BlackFideId "3000591"]
[WhiteElo "2571"]
[BlackElo "2409"]
[Result "1-0"]
[Round "3"]
[TimeControl "180+1"]
[Date "2023.10.31"]
[WhiteClock "0:00:03"]
[BlackClock "0:01:01"]
[Board "96"]

1. d4 {[%clk 0:03:00]}  Nf6 {[%clk 0:03:00]} 2. Nf3 {[%clk 0:02:58]}  e6 {[%clk 0:03:00]} 3. g3 {[%clk 0:02:58]}  d5 {[%clk 0:02:59]} 4. Bg2 {[%clk 0:02:59]}  Be7 {[%clk 0:03:00]} 5. O-O {[%clk 0:02:59]}  O-O {[%clk 0:03:01]} 6. b3 {[%clk 0:02:59]}  b6 {[%clk 0:02:59]} 7. Bb2 {[%clk 0:02:59]}  Bb7 {[%clk 0:03:00]} 8. Nbd2 {[%clk 0:02:58]}  a5 {[%clk 0:03:00]} 9. a3 {[%clk 0:02:57]}  a4 {[%clk 0:03:00]} 10. b4 {[%clk 0:02:57]}  c5 {[%clk 0:02:59]} 11. dxc5 {[%clk 0:02:54]}  bxc5 {[%clk 0:03:00]} 12. c3 {[%clk 0:02:46]}  Nbd7 {[%clk 0:02:55]} 13. Rc1 {[%clk 0:02:41]}  Qb6 {[%clk 0:02:50]} 14. Re1 {[%clk 0:02:37]}  e5 {[%clk 0:02:47]} 15. e4 {[%clk 0:02:29]}  dxe4 {[%clk 0:02:42]} 16. Ng5 {[%clk 0:02:29]}  e3 {[%clk 0:02:36]} 17. Rxe3 {[%clk 0:02:24]}  Bxg2 {[%clk 0:02:35]} 18. Kxg2 {[%clk 0:02:24]}  Nd5 {[%clk 0:02:29]} 19. Ngf3 {[%clk 0:00:58]}  Nxe3+ {[%clk 0:02:27]} 20. fxe3 {[%clk 0:00:59]}  cxb4 {[%clk 0:02:23]} 21. cxb4 {[%clk 0:00:59]}  Rad8 {[%clk 0:02:21]} 22. Nc4 {[%clk 0:00:58]}  Qb7 {[%clk 0:02:19]} 23. Qxa4 {[%clk 0:00:58]}  f6 {[%clk 0:02:11]} 24. Na5 {[%clk 0:00:58]}  Qa8 {[%clk 0:02:07]} 25. Qb3+ {[%clk 0:00:57]}  Kh8 {[%clk 0:02:05]} 26. Nc6 {[%clk 0:00:56]}  Rde8 {[%clk 0:02:05]} 27. Qe6 {[%clk 0:00:56]}  Nc5 {[%clk 0:01:34]} 28. bxc5 {[%clk 0:00:48]}  Bxc5 {[%clk 0:01:35]} 29. Qd5 {[%clk 0:00:31]}  Bxe3 {[%clk 0:01:34]} 30. Rc4 {[%clk 0:00:27]}  Rd8 {[%clk 0:01:30]} 31. Qe4 {[%clk 0:00:12]}  Bh6 {[%clk 0:01:30]} 32. Bc1 {[%clk 0:00:07]}  Bxc1 {[%clk 0:01:24]} 33. Rxc1 {[%clk 0:00:05]}  Qxa3 {[%clk 0:01:20]} 34. Rc4 {[%clk 0:00:05]}  Qa2+ {[%clk 0:01:18]} 35. Kh3 {[%clk 0:00:04]}  Rc8 {[%clk 0:01:09]} 36. Ra4 {[%clk 0:00:03]}  Qf2 {[%clk 0:01:07]} 37. Ne7 {[%clk 0:00:02]}  Rc2 {[%clk 0:01:01]} 38. Qxh7+ {[%clk 0:00:02]}  Kxh7 {[%clk 0:01:01]} 39. Rh4# {[%clk 0:00:03]} 1-0


[Site "https://www.chess.com"]

[Event "Titled Tuesday Blitz October 31 Late 2023"]
[White "Colivet Gamboa, Julio Cesar"]
[Black "Przybylski, Wojciech"]
[WhiteFideId "3949583"]
[BlackFideId "1117599"]
[WhiteElo "2371"]
[BlackElo "2561"]
[Result "0-1"]
[Round "3"]
[TimeControl "180+1"]
[Date "2023.10.31"]
[WhiteClock "0:00:33"]
[BlackClock "0:01:19"]
[Board "101"]

1. e4 {[%clk 0:02:48]}  c6 {[%clk 0:02:59]} 2. d4 {[%clk 0:02:47]}  d5 {[%clk 0:02:59]} 3. exd5 {[%clk 0:02:48]}  cxd5 {[%clk 0:02:58]} 4. c4 {[%clk 0:02:49]}  Nf6 {[%clk 0:02:58]} 5. Nc3 {[%clk 0:02:49]}  e6 {[%clk 0:02:58]} 6. Nf3 {[%clk 0:02:48]}  Nc6 {[%clk 0:02:58]} 7. cxd5 {[%clk 0:02:48]}  exd5 {[%clk 0:02:58]} 8. Bd3 {[%clk 0:02:48]}  Bd6 {[%clk 0:02:57]} 9. O-O {[%clk 0:02:48]}  O-O {[%clk 0:02:56]} 10. Re1 {[%clk 0:02:48]}  h6 {[%clk 0:02:56]} 11. h3 {[%clk 0:02:47]}  Re8 {[%clk 0:02:55]} 12. Bc2 {[%clk 0:02:44]}  Rxe1+ {[%clk 0:02:52]} 13. Qxe1 {[%clk 0:02:44]}  Nb4 {[%clk 0:02:51]} 14. Bb3 {[%clk 0:02:41]}  Nd3 {[%clk 0:02:49]} 15. Qd2 {[%clk 0:02:40]}  Nf4 {[%clk 0:02:40]} 16. Nb5 {[%clk 0:02:29]}  Bb8 {[%clk 0:02:36]} 17. Ne5 {[%clk 0:02:27]}  Ne6 {[%clk 0:02:32]} 18. Qd3 {[%clk 0:02:16]}  Ne4 {[%clk 0:02:25]} 19. Qf3 {[%clk 0:02:01]}  N6g5 {[%clk 0:02:16]} 20. Bxg5 {[%clk 0:01:58]}  Nxg5 {[%clk 0:02:11]} 21. Qxd5 {[%clk 0:01:58]}  Qxd5 {[%clk 0:02:04]} 22. Bxd5 {[%clk 0:01:59]}  a6 {[%clk 0:01:55]} 23. Rc1 {[%clk 0:01:50]}  Bxe5 {[%clk 0:01:53]} 24. dxe5 {[%clk 0:01:24]}  axb5 {[%clk 0:01:53]} 25. f4 {[%clk 0:01:24]}  Ne6 {[%clk 0:01:42]} 26. f5 {[%clk 0:01:21]}  Nf4 {[%clk 0:01:38]} 27. Bf3 {[%clk 0:01:05]}  Bxf5 {[%clk 0:01:38]} 28. Rc7 {[%clk 0:01:02]}  Rxa2 {[%clk 0:01:30]} 29. g4 {[%clk 0:00:56]}  Be6 {[%clk 0:01:23]} 30. Rxb7 {[%clk 0:00:42]}  Nxh3+ {[%clk 0:01:20]} 31. Kh2 {[%clk 0:00:33]}  Ng5 {[%clk 0:01:19]} 0-1


[Site "https://www.chess.com"]

[Event "Titled Tuesday Blitz October 31 Late 2023"]
[White "Aldokhin, Ivan"]
[Black "Lopez Del Alamo, Antonio"]
[WhiteFideId "24115720"]
[BlackFideId "2227339"]
[WhiteElo "2554"]
[BlackElo "2352"]
[Result "1-0"]
[Round "3"]
[TimeControl "180+1"]
[Date "2023.10.31"]
[WhiteClock "0:01:42"]
[BlackClock "0:00:55"]
[Board "103"]

1. e4 {[%clk 0:02:59]}  c5 {[%clk 0:02:57]} 2. Nf3 {[%clk 0:03:00]}  e6 {[%clk 0:02:54]} 3. d4 {[%clk 0:03:01]}  cxd4 {[%clk 0:02:51]} 4. Nxd4 {[%clk 0:03:02]}  Nf6 {[%clk 0:02:51]} 5. Nc3 {[%clk 0:03:02]}  Nc6 {[%clk 0:02:50]} 6. Nxc6 {[%clk 0:03:02]}  bxc6 {[%clk 0:02:47]} 7. Bd3 {[%clk 0:03:02]}  d5 {[%clk 0:02:35]} 8. Qe2 {[%clk 0:03:02]}  Be7 {[%clk 0:02:31]} 9. Bf4 {[%clk 0:03:01]}  O-O {[%clk 0:02:27]} 10. O-O {[%clk 0:03:01]}  Qa5 {[%clk 0:02:14]} 11. Rad1 {[%clk 0:02:53]}  d4 {[%clk 0:02:02]} 12. Nb1 {[%clk 0:02:48]}  e5 {[%clk 0:02:00]} 13. Bg3 {[%clk 0:02:45]}  Be6 {[%clk 0:01:54]} 14. Nd2 {[%clk 0:02:36]}  Nd7 {[%clk 0:01:47]} 15. Nc4 {[%clk 0:02:28]}  Qc5 {[%clk 0:01:44]} 16. a3 {[%clk 0:02:28]}  a5 {[%clk 0:01:40]} 17. b3 {[%clk 0:02:09]}  f6 {[%clk 0:01:33]} 18. a4 {[%clk 0:02:08]}  Nb6 {[%clk 0:01:13]} 19. Nxb6 {[%clk 0:02:07]}  Qxb6 {[%clk 0:01:12]} 20. f4 {[%clk 0:02:05]}  exf4 {[%clk 0:01:09]} 21. Bxf4 {[%clk 0:02:02]}  c5 {[%clk 0:01:09]} 22. h3 {[%clk 0:01:50]}  Rac8 {[%clk 0:01:02]} 23. Qh5 {[%clk 0:01:47]}  c4 {[%clk 0:00:59]} 24. bxc4 {[%clk 0:01:42]}  Bxc4 {[%clk 0:01:00]} 25. Bxc4+ {[%clk 0:01:41]}  Rxc4 {[%clk 0:00:55]} 26. Qd5+ {[%clk 0:01:42]} 1-0


[Site "https://www.chess.com"]

[Event "Titled Tuesday Blitz October 31 Late 2023"]
[White "Blomqvist, Erik"]
[Black "Tikhonov, Viacheslav"]
[WhiteFideId "1709437"]
[BlackFideId "44196407"]
[WhiteElo "2540"]
[BlackElo "2520"]
[Result "1-0"]
[Round "3"]
[TimeControl "180+1"]
[Date "2023.10.31"]
[WhiteClock "0:00:06"]
[BlackClock "0:00:07"]
[Board "107"]

1. e4 {[%clk 0:03:00]}  c5 {[%clk 0:02:59]} 2. Nf3 {[%clk 0:03:00]}  g6 {[%clk 0:03:00]} 3. c3 {[%clk 0:03:00]}  Bg7 {[%clk 0:03:00]} 4. d4 {[%clk 0:03:00]}  cxd4 {[%clk 0:03:01]} 5. cxd4 {[%clk 0:03:01]}  d5 {[%clk 0:03:02]} 6. e5 {[%clk 0:03:01]}  a6 {[%clk 0:03:03]} 7. Bd3 {[%clk 0:02:50]}  Nc6 {[%clk 0:03:03]} 8. h3 {[%clk 0:02:43]}  f6 {[%clk 0:03:03]} 9. exf6 {[%clk 0:02:41]}  Nxf6 {[%clk 0:03:03]} 10. O-O {[%clk 0:02:42]}  O-O {[%clk 0:03:04]} 11. Re1 {[%clk 0:02:42]}  Qd6 {[%clk 0:03:02]} 12. Nc3 {[%clk 0:02:36]}  Nh5 {[%clk 0:03:00]} 13. Bf1 {[%clk 0:02:12]}  b5 {[%clk 0:02:54]} 14. Ne5 {[%clk 0:02:04]}  Nxe5 {[%clk 0:02:37]} 15. dxe5 {[%clk 0:02:04]}  Bxe5 {[%clk 0:02:38]} 16. Qxd5+ {[%clk 0:02:00]}  Qxd5 {[%clk 0:02:30]} 17. Nxd5 {[%clk 0:02:01]}  Bd4 {[%clk 0:02:19]} 18. Nxe7+ {[%clk 0:01:53]}  Kg7 {[%clk 0:02:11]} 19. Be3 {[%clk 0:01:47]}  Bxb2 {[%clk 0:02:04]} 20. Rad1 {[%clk 0:01:39]}  Rf7 {[%clk 0:01:51]} 21. g4 {[%clk 0:00:46]}  Nf6 {[%clk 0:01:21]} 22. Bg2 {[%clk 0:00:41]}  Rb8 {[%clk 0:00:57]} 23. Nc6 {[%clk 0:00:41]}  Rbb7 {[%clk 0:00:39]} 24. Nd8 {[%clk 0:00:40]}  Bc3 {[%clk 0:00:34]} 25. Nxf7 {[%clk 0:00:23]}  Rxf7 {[%clk 0:00:30]} 26. Re2 {[%clk 0:00:23]}  b4 {[%clk 0:00:26]} 27. Bd4 {[%clk 0:00:22]}  Bxd4 {[%clk 0:00:18]} 28. Rxd4 {[%clk 0:00:23]}  a5 {[%clk 0:00:15]} 29. Re5 {[%clk 0:00:23]}  Ra7 {[%clk 0:00:10]} 30. g5 {[%clk 0:00:19]}  Nh5 {[%clk 0:00:07]} 31. h4 {[%clk 0:00:17]}  Bf5 {[%clk 0:00:04]} 32. Rb5 {[%clk 0:00:14]}  Kf7 {[%clk 0:00:04]} 33. Rdd5 {[%clk 0:00:14]}  Be6 {[%clk 0:00:02]} 34. Rxa5 {[%clk 0:00:14]}  Rxa5 {[%clk 0:00:03]} 35. Rxa5 {[%clk 0:00:14]}  Ng7 {[%clk 0:00:03]} 36. Ra7+ {[%clk 0:00:14]}  Kf8 {[%clk 0:00:03]} 37. Be4 {[%clk 0:00:13]}  Kg8 {[%clk 0:00:02]} 38. Kh2 {[%clk 0:00:13]}  Kf8 {[%clk 0:00:03]} 39. Kg3 {[%clk 0:00:14]}  Kg8 {[%clk 0:00:03]} 40. Kf4 {[%clk 0:00:14]}  Bc4 {[%clk 0:00:02]} 41. Ke5 {[%clk 0:00:14]}  Kf8 {[%clk 0:00:03]} 42. Kd6 {[%clk 0:00:12]}  Be6 {[%clk 0:00:01]} 43. Rxg7 {[%clk 0:00:11]}  Kxg7 {[%clk 0:00:01]} 44. Kxe6 {[%clk 0:00:09]}  h5 {[%clk 0:00:02]} 45. Kd5 {[%clk 0:00:07]}  Kh7 {[%clk 0:00:02]} 46. Kc4 {[%clk 0:00:07]}  b3 {[%clk 0:00:02]} 47. Kxb3 {[%clk 0:00:07]}  Kh8 {[%clk 0:00:03]} 48. a4 {[%clk 0:00:08]}  Kg7 {[%clk 0:00:04]} 49. a5 {[%clk 0:00:08]}  Kf7 {[%clk 0:00:05]} 50. a6 {[%clk 0:00:09]}  Ke6 {[%clk 0:00:06]} 51. Bxg6 {[%clk 0:00:08]}  Ke5 {[%clk 0:00:07]} 52. Bxh5 {[%clk 0:00:08]}  Kf4 {[%clk 0:00:08]} 53. Be2 {[%clk 0:00:08]}  Kf5 {[%clk 0:00:08]} 54. a7 {[%clk 0:00:08]}  Kg6 {[%clk 0:00:09]} 55. a8=Q {[%clk 0:00:08]}  Kh7 {[%clk 0:00:10]} 56. Qc6 {[%clk 0:00:06]}  Kg8 {[%clk 0:00:07]} 57. h5 {[%clk 0:00:06]} 1-0


[Site "https://www.chess.com"]